Cogmind - Beta 12 --- EXPLORER MODE // 2023.12.06 @ 23:30:31 // Winter2019/RPGLIKE Player: TheAnchor Result: Destroyed by as-33907 with Assembled F-torch Performance ------------- Evolutions (0) 0 Regions Visited (3) 600 Robots Destroyed (59) 295 Value Destroyed (938) 938 Prototype IDs (4) 80 Alien Tech Used (0) 0 Bonus (358) 358 TOTAL SCORE: 2271 Bonus ------- Follower Combat Kills 58 Aligned with FarCom 300 Cogmind --------- Core Integrity 0/950 Matter 278/400 Energy 511/515 System Corruption 1% Temperature Cool (20) Movement Rolling (95) Ox1 Location -10/Exiles Parts ------- > --- POWER (2) -------- Ion Engine Improved Ion Engine > --- PROPULSION (2) --- Wheel Wheel > --- UTILITY (4) ------ Experimental Sensor Array Improved Terrain Scanner Targeting Computer Hardened Light Armor Plating > --- WEAPON (3) ------- Light Cannon Light Cannon Ripper > --- INVENTORY (2) ---- (None) Peak State ------------ > --- POWER ------------ Ion Engine Improved Ion Engine > --- PROPULSION ------- Wheel Wheel > --- UTILITY ---------- Experimental Sensor Array Improved Terrain Scanner Targeting Computer Hardened Light Armor Plating > --- WEAPON ----------- Light Cannon Light Cannon Ripper > --- INVENTORY -------- Light Ion Engine [Rating: 26] Favorites ----------- Power Ion Engine Engine Ion Engine Propulsion Wheel Treads Light Treads Leg Aluminum Leg Wheel Wheel Utility Targeting Computer Device Improved Terrain Scanner Processor Targeting Computer Protection Hardened Light Armor Plating Weapon Light Cannon Ballistic Gun Assault Rifle Ballistic Cannon Light Cannon Slashing Weapon Ripper Special Melee Weapon Datajack Build | -11 -10 -10 -10 ------- Run | Jun Mat Min Exi Slots Evolved 7 | 4 . 3 . Power 1 | . . 1 . Propulsion 1 | 1 . . . Utility 3 | 2 . 1 . Weapon 2 | 1 . 1 . Parts Attached 42 | 10 24 8 . Power 7 | 1 3 3 . Engine 7 | 1 3 3 . Core . | . . . . Reactor . | . . . . Propulsion 10 | 3 7 . . Treads 7 | 2 5 . . Leg 1 | 1 . . . Wheel 2 | . 2 . . Hover . | . . . . Flight . | . . . . Utility 11 | 4 3 4 . Device 6 | 2 1 3 . Storage . | . . . . Processor 1 | 1 . . . Hackware . | . . . . Protection 4 | 1 2 1 . Artifact . | . . . . Weapon 14 | 2 11 1 . Energy Gun . | . . . . Energy Cannon . | . . . . Ballistic Gun 4 | 2 2 . . Ballistic Cannon 6 | . 6 . . Launcher . | . . . . Special Weapon . | . . . . Impact Weapon . | . . . . Slashing Weapon 1 | . . 1 . Piercing Weapon . | . . . . Special Melee Weapon 3 | . 3 . . Unidentified Prototypes 1 | . . 1 . Parts Lost . | . . . . Power . | . . . . Propulsion . | . . . . Utility . | . . . . Weapon . | . . . . Highest Loss Streak . | . . . . To Critical Strikes . | . . . . Average Slot Usage (%) 99 | . 99 99 100 Engine 13 | . 11 12 18 Treads 7 | . 14 . . Wheel 15 | . 10 24 18 Device 13 | . 11 12 18 Processor 11 | . 12 11 9 Protection 11 | . 11 11 9 Ballistic Gun 2 | . 5 . . Ballistic Cannon 19 | . 18 24 18 Slashing Weapon 2 | . . . 9 Naked Turns . | . . . . Heaviest Build 28 | 13 17 28 28 Greatest Support 45 | 45 45 25 25 Greatest Overweight (x) 1 | 1 1 1 1 Average Overweight (x) . | . . . 1 Largest Inventory Capacity 2 | 2 2 2 2 Average Capacity 1 | 1 2 2 2 Most Carried 2 | 2 2 2 . Average Carried 1 | 1 1 1 . Final Capacity 2 | 2 2 2 2 Final Carried 2 | 2 2 . . Class Distribution -------------------- 100% | Hacker-Mutant Dominant Class ---------------- Hacker-Mutant | -10/Materials Hacker-Mutant | -10/Mines Hacker-Mutant | -10/Exiles Resources | -11 -10 -10 -10 ----------- Run | Jun Mat Min Exi Matter Collected 1734 | 509 1007 205 13 Remotely . | . . . . Salvage Created 1501 | 246 953 283 19 Parts 121 | 26 74 21 . Haulers Intercepted 2 | . 2 . . Recyclers Shooed 1 | . 1 . . Parts Field Recycled . | . . . . Retrieved Matter . | . . . . Parts Self-Destructed . | . . . . Prevented . | . . . . Kills | -11 -10 -10 -10 ------- Run | Jun Mat Min Exi Combat Hostiles Destroyed 26 | . 20 4 2 Guns 4 | . 4 . . Cannons 22 | . 16 4 2 Classes Destroyed 10 | 3 5 1 1 Worker 10 | 3 7 . . Builder 3 | . 3 . . Tunneler 10 | 6 1 3 . Hauler 2 | . 2 . . Recycler 7 | 1 5 1 . Watcher 3 | . 3 . . Swarmer 6 | . 6 . . Grunt 17 | . 14 3 . Sentry 1 | . . 1 . Assembled 2 | . . . 2 Best Kill Streak 4 | 4 4 2 2 Combat Bots Only 3 | . 3 2 2 Max Kills in Single Turn 2 | 1 2 2 1 Gunslinging . | . . . . Exploded . | . . . . Melee . | . . . . Uniques/NPCs Destroyed . | . . . . Combat | -11 -10 -10 -10 -------- Run | Jun Mat Min Exi Damage Taken 1706 | . 322 127 1257 Core 1252 | . 209 90 953 Absorbed by Shields . | . . . . Redirected to Core 1013 | . 204 61 748 Regen/Repaired (Parts) 6 | . 6 . . Core Remaining (%) 100 | 100 . . . Volleys Fired 149 | 26 91 17 15 Largest 2 | 2 2 2 2 Hottest 70 | 40 70 70 70 Shots Fired 297 | 52 182 34 29 Gun 85 | 52 33 . . Cannon 212 | . 149 34 29 Launcher . | . . . . Special . | . . . . Kinetic 297 | 52 182 34 29 Thermal . | . . . . Explosive . | . . . . Electromagnetic . | . . . . Robot Hit Streak 32 | 16 26 26 32 Robot Miss Streak 2 | 1 2 1 1 Penetration Max . | . . . . Secondary Targets . | . . . . Shots Hit Robots 207 | 37 134 27 9 Core Hits 72 | 11 46 9 6 Critical Kills . | . . . . Critical Parts Destroyed 1 | 1 . . . Critical Strikes 7 | 1 4 2 . Destroy 1 | 1 . . . Blast 6 | . 4 2 . Melee Attacks 19 | . 7 . 12 Impact . | . . . . Slashing 12 | . . . 12 Piercing . | . . . . Sneak Attacks 6 | . 6 . . Combat Hostiles . | . . . . Follow-up Attacks . | . . . . Damage Inflicted 3286 | 509 2086 492 199 Guns 828 | 509 319 . . Cannons 2398 | . 1766 479 153 Explosions . | . . . . Melee 46 | . . . 46 Ramming 14 | . 1 13 . Kinetic 3226 | 509 2085 479 153 Thermal . | . . . . Explosive . | . . . . Electromagnetic . | . . . . Impact . | . . . . Slashing 46 | . . . 46 Piercing . | . . . . Highest Corruption 1 | . 1 1 1 Average Corruption 1 | . 1 1 1 Corruption Purged . | . . . . Corruption Blocked . | . . . . Effects 18 | . 12 2 4 Message Errors 4 | . 2 1 1 Matter Fused 4 | . 3 . 1 Heat Flow Errors 2 | . 1 1 . Energy Discharges 3 | . 3 . . Data Loss (minor) 1 | . 1 . . Data Loss (major) 1 | . . . 1 Misfires 1 | . 1 . . Weapon Failures 2 | . 1 . 1 Overload Shots . | . . . . Overflow Damage 49 | . 24 19 6 Projectiles 43 | . 24 19 . Explosions . | . . . . Melee 6 | . . . 6 Knockbacks 34 | . 23 5 6 Impact 1 | . 1 . . Kinetic 31 | . 21 5 5 Secondary 2 | . 1 . 1 Self-Inflicted Damage 61 | . 55 6 . Shots 1 | . 1 . . Rammed 2 | . 1 1 . Targets Rammed 2 | . 1 1 . Kicked . | . . . . Crushed . | . . . . Highest Temperature 222 | . 222 141 . Average Temperature 104 | . 119 73 . Received Heat Transfer 466 | . 156 90 220 Siege Activations . | . . . . Robots Corrupted . | . . . . Combat Hostiles . | . . . . Parts Fried . | . . . . Impact Corruptions . | . . . . Robots Melted . | . . . . Combat Hostiles . | . . . . Parts Melted . | . . . . Heat Transferred . | . . . . Parts Sabotaged . | . . . . Parts Stolen . | . . . . Parts Stripped . | . . . . Power Chain Reactions . | . . . . Missiles Intercepted . | . . . . Alert | -11 -10 -10 -10 ------- Run | Jun Mat Min Exi Peak Influence 243 | 50 243 164 . Initial 26 | . 24 26 . Average 79 | 19 97 65 . Maximum Alert Level 1 | . 1 . . Low Security (%) 97 | 100 96 100 . Level 1 2 | . 3 . . Level 2 . | . . . . Level 3 . | . . . . Level 4 . | . . . . Level 5 . | . . . . High Security . | . . . . Max Security . | . . . . Squads Dispatched 5 | . 5 . . Investigation 5 | . 5 . . Extermination . | . . . . Reinforcement . | . . . . Assault . | . . . . Garrison . | . . . . Intercept . | . . . . Searches Triggered . | . . . . Construction Impeded . | . . . . Haulers Reinforced . | . . . . Active Scanning Responses . | . . . . Cargo Convoy Interrupts . | . . . . Stealth | -11 -10 -10 -10 --------- Run | Jun Mat Min Exi Distress Signals . | . . . . Communications Jammed . | . . . . Distress Signals . | . . . . Times Spotted 48 | . 24 6 18 Peak Tracking Total 12 | . 3 2 12 Tactical Retreats 2 | . . . 2 Traps | -11 -10 -10 -10 ------- Run | Jun Mat Min Exi Traps Triggered 3 | . 3 . . Indirectly . | . . . . Trap Hack Attempts . | . . . . Triggered . | . . . . Disarmed . | . . . . Reprogrammed . | . . . . Reused . | . . . . Traps Extracted . | . . . . Installed . | . . . . Triggered . | . . . . Machines | -11 -10 -10 -10 ---------- Run | Jun Mat Min Exi Machines Disabled 5 | . 4 . 1 Max in Single Turn 2 | . 2 . 1 Machines Repaired . | . . . . Machines Sabotaged . | . . . . Overloaded Fab Kills . | . . . . Hacking | -11 -10 -10 -10 --------- Run | Jun Mat Min Exi Machines Accessed 15 | . 9 2 4 Terminals 8 | . 6 2 . Fabricators . | . . . . Repair Stations 1 | . 1 . . Recycling Units 2 | . 2 . . Scanalyzers . | . . . . Garrison Access . | . . . . Total Hacks 99 | . 38 12 49 Successful 88 | . 31 8 49 Failed 11 | . 7 4 . Catastrophic 1 | . 1 . . Database Lockouts . | . . . . Manual 7 | . . 5 2 Terminals 43 | . 31 12 . Fabricators . | . . . . Repair Stations 3 | . 3 . . Recycling Units 4 | . 4 . . Scanalyzers . | . . . . Garrison Access . | . . . . Terminal Hacks 82 | . 25 8 49 Record 69 | . 14 6 49 Prototype ID Bank 2 | . 2 . . Branch Access Points 1 | . 1 . . Repair Station Index 1 | . 1 . . Alert Level 1 | . 1 . . Locate Traps 1 | . 1 . . Dispatch Records 1 | . 1 . . Maintenance Status 2 | . 2 . . Investigation Status 1 | . . 1 . Hauler Manifests 1 | . 1 . . Registered Components 1 | . 1 . . Zone Layout 1 | . . 1 . Fabricator Hacks . | . . . . Repair Station Hacks 2 | . 2 . . Scan Component 1 | . 1 . . Repair 1 | . 1 . . Recycling Unit Hacks 4 | . 4 . . Process 1 | . 1 . . Report Inventory 1 | . 1 . . Retrieve Matter 1 | . 1 . . Retrieve Components 1 | . 1 . . Scanalyzer . | . . . . Garrison Access Hacks . | . . . . Unauthorized Hacks . | . . . . Terminals . | . . . . Fabricators . | . . . . Repair Stations . | . . . . Recycling Units . | . . . . Scanalyzers . | . . . . Garrison Access . | . . . . Data Cores Recovered . | . . . . Used . | . . . . Hacking Detections 9 | . 7 2 . Full Trace Events 8 | . 6 2 . Feedback Events 1 | . 1 . . Corruption 1 | . 1 . . Feedback Blocked . | . . . . Robot Schematics Acquired . | . . . . Robots Built . | . . . . Authchips . | . . . . Time . | . . . . Total Robot Build Rating . | . . . . Part Schematics Acquired . | . . . . Parts Built . | . . . . Authchips . | . . . . Time . | . . . . Total Part Build Rating . | . . . . Parts Repaired 1 | . 1 . . Time 19 | . 19 . . Parts Recycled . | . . . . Recycled Matter 83 | . 83 . . Retrieved Matter 235 | . 235 . . Retrieved Components . | . . . . Parts Scanalyzed . | . . . . Part Schematics Acquired . | . . . . Parts Damaged . | . . . . Bothacking | -11 -10 -10 -10 ------------ Run | Jun Mat Min Exi Used RIF Installer . | . . . . Robots Hacked 4 | . 4 . . Non-combat 4 | . 4 . . Combat . | . . . . Robot Hacks Applied 6 | . 6 . . parse_system 3 | . 3 . . no_distress 3 | . 3 . . Relay Couplers Released . | . . . . Fabnet Peak Effective % . | . . . . Robots Rewired . | . . . . Allies Hacked . | . . . . Hacks Repelled . | . . . . Allies | -11 -10 -10 -10 -------- Run | Jun Mat Min Exi Total Allies 3 | . . 3 . Largest Group 3 | . . 3 . Highest-Rated Group 40 | . . 40 . Highest-Rated Ally 16 | . . 16 . Total Orders . | . . . . Ally Attacks 10 | . . 10 . Total Damage 142 | . . 142 . Kills 2 | . . 2 . Allies Corrupted . | . . . . Allies Melted . | . . . . Intel | -11 -10 -10 -10 ------- Run | Jun Mat Min Exi Robot Analysis Total . | . . . . Derelict Logs Recovered . | . . . . Drone Launches . | . . . . Drone Recoveries . | . . . . Exploration | -11 -10 -10 -10 ------------- Run | Jun Mat Min Exi Turns Passed 3660 | 378 1807 630 845 Spaces Moved 2973 | 198 1273 689 813 Core 23 | 20 3 . . Treads 668 | 146 522 . . Legs 32 | 32 . . . Wheels 2250 | . 748 689 813 Hover . | . . . . Flight . | . . . . Fastest Speed 50 | 50 80 80 95 Average Speed 102 | 142 112 80 95 Slowest Speed 160 | 160 160 95 95 Overloaded Moves . | . . . . Propulsion Burnouts . | . . . . Robots Hopped . | . . . . Cave-ins Triggered 2 | . . . 2 Exploration Rate (%) 73 | 10 97 92 93 Regions Visited 3 Branch Regions 2 Pre-discovered Areas 2 | . . 1 1 Known Exits Taken 3 | 1 1 1 . Unknown Exits Taken . | . . . . Scrap Searched . | . . . . Spaces Dug 10 | . . . 10 Terrain Destroyed 36 | . 26 . 10 Melee 10 | . . . 10 Projectile . | . . . . AOE 26 | . 26 . . Terrain Rammed . | . . . . Walls Destroyed . | . . . . Machines Disabled . | . . . . Actions | -11 -10 -10 -10 --------- Run | Jun Mat Min Exi Total 3259 | 237 1453 729 840 Wait 26 | . 26 . . Move 2969 | 197 1272 688 812 Hop . | . . . . Pick Up 10 | 2 3 5 . Fast Attach 31 | 10 19 2 . Attach 3 | . . 3 . Detach 1 | . 1 . . Swap 8 | . 5 3 . Drop 22 | 2 14 6 . Fire 149 | 26 91 17 15 Melee 19 | . 7 . 12 Ram 1 | . . 1 . Kick . | . . . . Crush 1 | . 1 . . Escape Stasis 1 | . . . 1 Rewire . | . . . . Trap . | . . . . Miscellaneous 18 | . 14 4 . Route ------- -11/Junkyard -10/Materials (discovered 4 exits: *Mat x3 / *Min) -10/Mines (discovered 3 exits: *Mat x2 / *Exi) -10/Exiles (discovered 2 exits: *Min x2) History --------- Turn | Location | Event 6 | -11/Junkyard | Upgraded with Propulsion slot (x1) 6 | -11/Junkyard | Upgraded with Utility slot (x2) 6 | -11/Junkyard | Upgraded with Weapon slot (x1) 18 | -11/Junkyard | Identified exit to Materials 18 | -11/Junkyard | Discovered exit to Materials (range 15) 379 | -11/Junkyard | Entered Materials 380 | -10/Materials | Build established: Hacker-Mutant 687 | -10/Materials | Identified exit to Materials 687 | -10/Materials | Discovered exit to Materials (range 10) 797 | -10/Materials | Identified exit to Mines 1158 | -10/Materials | Discovered exit to Materials (range 5) 1584 | -10/Materials | Reached level 2 1824 | -10/Materials | Discovered exit to Materials (range 10) 2115 | -10/Materials | Repaired Imp. Terrain Scanner 2186 | -10/Materials | Entered Mines 2188 | -10/Mines | Reached level 3 2211 | -10/Mines | Assisted by bots powering up and referring to "LRC-V3" 2220 | -10/Mines | Met a Derelict bent on vengeance 2316 | -10/Mines | Deemed a non-threat by the Exiles lab entrance 2316 | -10/Mines | Identified exit to Exiles 2316 | -10/Mines | Discovered exit to Exiles (range 5) 2459 | -10/Mines | Learned location of Storage (-8) 2520 | -10/Mines | A weapon hastily lodged in a ceiling crevice suddenly fell to the ground 2546 | -10/Mines | Discovered exit to Materials (range 5) 2572 | -10/Mines | Discovered exit to Materials (range 7) 2628 | -10/Mines | Found a damaged Exp. Sensor Array with a note attached 2635 | -10/Mines | Found Prototype Device 2636 | -10/Mines | Identified Exp. Sensor Array 2767 | -10/Mines | Upgraded with Power slot (x1) 2767 | -10/Mines | Upgraded with Utility slot (x1) 2767 | -10/Mines | Upgraded with Weapon slot (x1) 2816 | -10/Mines | Entered Exiles 2844 | -10/Exiles | Identified exit to Mines 2844 | -10/Exiles | Discovered exit to Mines (range 15) 2874 | -10/Exiles | Met 8R-AWN 2887 | -10/Exiles | Met EX-HEX 2927 | -10/Exiles | Met EX-DEC 2988 | -10/Exiles | Learned location of Zion (-7) 3042 | -10/Exiles | Discovered exit to Mines (range 14) 3122 | -10/Exiles | Visited The Gauntlet 3251 | -10/Exiles | Met EX-BIN 3270 | -10/Exiles | Aligned with FarCom system 3271 | -10/Exiles | Given EX-Vault access code 3452 | -10/Exiles | Crushed by falling debris 3453 | -10/Exiles | Crushed by falling debris 3453 | -10/Exiles | Core integrity fell below 50% 3609 | -10/Exiles | Attacked by the Exiles 3640 | -10/Exiles | Core integrity fell below 20% 3661 | -10/Exiles | Destroyed by as-33907 with Assembled F-torch Last Messages --------------- 03608_ Machine disabled. 03609_ EXILES: Hostile robot within lab perimeter. Defensive protocols time, folks! 03612_ Machine disabled. 03614_ EX-BIN: "I just want to science!" 03623_ Machine disabled. 03644_ Destroyed Asb. Hover Unit. 03647_ as-02112 knocked back. 03647_ as-02112 destroyed. 03648_ Machine disabled. 03650_ as-75862 knocked back. 03652_ as-75862 destroyed. 03653_ as-12157 knocked back. 03655_ as-12157 destroyed. 03656_ Acquired 11 matter. 03657_ Acquired 2 matter. 03658_ as-99569 knocked back. 03658_ as-91752 knocked back. 03658_ Penetrated by HV Slug. 03661_ as-99569 destroyed. Map ----- +----------------------------------------------------+ | ???????????????????????????????????????#" | | ????????????????????????????????????#??#" ## | | ##????????#????????????????#???????????#""""""## | | #?????????????????????????????????????##"###### | | #?????????????????????????????????????? "??##?# | | #????????????????????????????????????#""" ##???# | | ##???????????????????????????#????????""" ??#?## | | #????????????#######???????????????????" ????#" | | ########?????#!!! "#????????????????#??##???##" | | #""##?????# "#?????????????????#????####" | | #?????# "##???????#????????????????#" | | ##???## ""#??????????########????#??#" | | #####" ""#??????????# """#???##?##" | | ##" ""#???#??????#"" """#???#??### | | # #"" ###????#?#?#?#"" #?#?#?#??# | | #"## #????????????#"" #???#????#" | | ####### ##??????????##"" "#????????#" | | ??????### "##??????????# ""#????#???#" | | ########" ###?????????#"" ""##????####" | | # !!""""" ##????????### ###??????##"" | | #! "###"" ######???### ##########"" | | #! "#?## """#####X# #"###""""""" | | #! ##?##" """""" " "" | | # !""""""###??##"# % "" """ " | | ##########?????#### %% " " | | ?????????#????????### @ %% | | ?????????#????#????####% %%%% | | ????????????????????#### a a | | ???????????????????????## a % % % | | ?????????????????#??????##" % | | ?????????##??#??#??#?????#""" % % """"" | | ????????????#???????????##" ###### | | ??????#?????????????????#"" ""##??### | | ???????????????????????##""" """##?????? | | ??????????##????##?????#""" ""##?????#? | | ???????????????#???????#""" ""#???????? | | ?????????????????????###"" ########?? | | ???????????????????????#""" ## ### | | ???????????????????????#"" ? "" | | ??????????????????????###"" | | ????????????????????????#"""" | | ????????????????????????## | | ?????????????????????????#" " | | ?????????????????????????#"""" ""## | | ?????????????????????????#"" ""#### | | ?????????????????????????#" """"##??# | | ?????????????????????????#""" """#??## | | ?????????????????????????## ""##??#! | | ?????????????????????????##"" """##???#" | | ??????????????????????????##""" ##?#??#" | +----------------------------------------------------+ Best States ------------- Heat Dissipation 61 Energy Generation 22 Energy Capacity 515 Matter Stores 400 Matter Capacity 400 Sight Range 16 Robot Scan Range 24 Terrain Scan Range 16 Terrain Scan Density 10 Armor Coverage 150 Resistance: KI 35 Resistance: TH 35 Resistance: EX 35 Resistance: EM 35 Resistance: I 35 Resistance: S 35 Resistance: P 35 Evasion (%) 50 Targeting Accuracy 5 Recoil Reduction 2 Offensive Hacking 20 Defensive Hacking 5 Item Schematics ----------------- None Robot Schematics ------------------ None Fabricated ------------ Nothing Alien Tech Used ----------------- None Achievements -------------- None Challenges ------------ None RPGLIKE | -11 -10 -10 -10 --------- Run | Jun Mat Min Exi Levels Raised 2 | . 1 1 . XP Earned 10263 | 6000 2655 1258 350 XP Spent 8910 | 5775 . 3135 . Upgrades 33 | 21 . 12 . Power Slot 1 | . . 1 . Propulsion Slot 1 | 1 . . . Utility Slot 3 | 2 . 1 . Weapon Slot 2 | 1 . 1 . Core Integrity 7 | . . 7 . Heat Dissipation 6 | 5 . 1 . Energy Generation 1 | 1 . . . Energy Storage 2 | 2 . . . Matter Storage 2 | 2 . . . Mass Support 1 | 1 . . . Inventory Capacity 2 | 2 . . . Sensor Range 2 | 2 . . . Ranged Accuracy 2 | 2 . . . Hack Defense % 1 | . . 1 . Protomatter Created 198 | . 198 . . Integrity Restored 299 | . 209 90 . Core 299 | . 209 90 . Protomatter Decayed 128 | . 127 1 . Game ------ Seed LightFocalWings Manual? 0 Play Time 00:55:58 Cumulative 11.0 hours Start 2023.12.05 @ 14:20:46 End 2023.12.06 @ 23:30:31 Sessions 3 Manual Loads 0 Difficulty Explorer Special Mode Winter2019/RPGLIKE Game No. 15 Rogue 7 Adventurer 3 Explorer 5 Win Type - Total 0 Types 0/0/0/0/0/0/0/0/0 Lore% 14 Gallery% 18 Achievement% 21 Wizard Run 0 Options --------- ASCII 0 Keyboard 0 Movement Arrows Keybinds 0 Fullscreen 1 Font 18/TerminusBold Map View 76x50 Tactical HUD 1 Map Filters NONE Filters NONE Steam 1 RUN: eed847e8-84c2-45e2-a58d-637b8b9a9667